Cogmind - Beta 15 @@@ ROGUE MODE // 2025.10.15 @ 00:01:23 Player: Veggiepits Result: Self-destructed Performance ------------- Evolutions (2) 1000 Regions Visited (3) 600 Robots Destroyed (12) 60 Value Destroyed (390) 390 Prototype IDs (0) 0 Alien Tech Used (0) 0 Bonus (0) 0 TOTAL SCORE: 2050 Bonus ------- None Cogmind --------- Core Integrity 414/550 Matter 300/300 Energy 100/100 System Corruption 0% Temperature Cool (0) Movement Walking (120) Location -8/Materials Parts ------- > --- POWER (1) -------- (None) > --- PROPULSION (4) --- Aluminum Leg Armored Wheel > --- UTILITY (3) ------ (None) > --- WEAPON (3) ------- (None) > --- INVENTORY (5) ---- Light Ion Engine Cooling System Cooling System Small Storage Unit Medium Armor Plating Peak State ------------ > --- POWER ------------ Light Ion Engine > --- PROPULSION ------- Aluminum Leg Aluminum Leg Armored Wheel > --- UTILITY ---------- Improved Sensor Array Heavy Armor Plating > --- WEAPON ----------- Medium Laser Light EM Pulse Cannon Assault Rifle > --- INVENTORY -------- Cooling System Cooling System Small Storage Unit Medium Armor Plating [Rating: 18] Favorites ----------- Power Light Ion Engine Engine Light Ion Engine Propulsion Aluminum Leg Leg Aluminum Leg Wheel Armored Wheel Utility Medium Armor Plating Device Improved Sensor Array Storage Small Storage Unit Processor Targeting Computer Protection Medium Armor Plating Weapon Medium Laser Energy Gun Medium Laser Energy Cannon Light EM Pulse Cannon Ballistic Gun Assault Rifle Build | -11 -10 -9 -8 ------- Run | Yrd Mat Mat Mat Slots Evolved 4 | . . 2 2 Power . | . . . . Propulsion 2 | . . 2 . Utility 1 | . . . 1 Weapon 1 | . . . 1 Parts Attached 18 | 7 1 2 8 Power 2 | 1 . . 1 Engine 2 | 1 . . 1 Core . | . . . . Reactor . | . . . . Propulsion 5 | 2 . 2 1 Treads . | . . . . Leg 4 | 2 . 2 . Wheel 1 | . . . 1 Hover . | . . . . Flight . | . . . . Utility 7 | 1 1 . 5 Device 1 | . . . 1 Storage 1 | 1 . . . Processor 1 | . . . 1 Hackware . | . . . . Protection 4 | . 1 . 3 Artifact . | . . . . Weapon 4 | 3 . . 1 Energy Gun 2 | 2 . . . Energy Cannon 1 | . . . 1 Ballistic Gun 1 | 1 . . . Ballistic Cannon . | . . . . Launcher . | . . . . Special Weapon . | . . . . Impact Weapon . | . . . . Slashing Weapon . | . . . . Piercing Weapon . | . . . . Special Melee Weapon . | . . . . Unidentified Prototypes . | . . . . Parts Lost 12 | . . 4 8 Power 2 | . . 1 1 Propulsion 3 | . . 2 1 Utility 3 | . . 1 2 Weapon 4 | . . . 4 Highest Loss Streak 6 | . . 4 6 To Critical Strikes . | . . . . Average Backups 5 | 1 7 6 4 Power . | . 1 1 . Propulsion . | . 2 . . Utility 3 | . 3 4 3 Weapon . | . 1 1 . Tool/Special . | . . . . Unused Backups 5 | . 2 . 3 Power 1 | . . . 1 Propulsion 2 | . 2 . . Utility 2 | . . . 2 Weapon . | . . . . Tool/Special . | . . . . Average Slot Usage (%) 85 | . 99 98 75 Engine 10 | . 14 11 8 Leg 26 | . 28 42 17 Wheel 3 | . . . 6 Device 2 | . . . 4 Storage 6 | . 14 11 1 Protection 11 | . 13 11 11 Energy Gun 12 | . 14 11 12 Energy Cannon 2 | . . . 3 Ballistic Gun 9 | . 14 11 6 Peak Build Rating 18 | 6 9 11 18 Average Rating 11 | 4 8 10 14 On Entrance 5 | . 6 9 6 Naked Turns . | . . . . Heaviest Build 28 | 12 19 19 28 Greatest Support 40 | 20 20 40 20 Greatest Overweight (x) 1 | . . . 1 Average Overweight (x) . | . . . . Largest Inventory Capacity 8 | 8 8 8 8 Average Capacity 6 | 6 8 8 5 Most Carried 8 | 4 8 7 6 Average Carried 5 | 1 7 6 4 Final Capacity 8 | 8 8 8 5 Final Carried 8 | 4 8 7 5 Class Distribution -------------------- 66% | Mutant 33% | Tank Dominant Class ---------------- Mutant | -10/Materials Mutant | -9/Materials Tank | -8/Materials Resources | -11 -10 -9 -8 ----------- Run | Yrd Mat Mat Mat Matter Collected 445 | 265 30 32 118 Remotely . | . . . . Salvage Created 417 | . 42 94 281 Parts 32 | . 3 8 21 Haulers Intercepted . | . . . . Recyclers Shooed 3 | . . . 3 Parts Field Recycled . | . . . . Retrieved Matter . | . . . . Parts Self-Destructed . | . . . . Prevented . | . . . . Kills | -11 -10 -9 -8 ------- Run | Yrd Mat Mat Mat Combat Hostiles Destroyed 9 | . 1 2 6 Guns 4 | . 1 2 1 Cannons 2 | . . . 2 AOE 3 | . . . 3 Classes Destroyed 5 | . 1 1 3 Mechanic 1 | . . . 1 Watcher 2 | . . 1 1 Swarmer 2 | . . . 2 Grunt 5 | . 1 2 2 Sentry 2 | . . . 2 Best Kill Streak 3 | . 1 2 3 Combat Bots Only 3 | . 1 1 3 Max Kills in Single Turn 2 | . 1 1 2 Gunslinging . | . . . . Exploded 2 | . . . 2 Melee . | . . . . Uniques/NPCs Destroyed . | . . . . Combat | -11 -10 -9 -8 -------- Run | Yrd Mat Mat Mat Hostile Shots Fired 137 | . 5 55 77 Missed 41 | . 3 15 23 Hits 96 | . 2 40 54 Melee 2 | . . 2 . Projectile 94 | . 2 38 54 Critical Strikes 1 | . . . 1 Damage Taken 1454 | . 21 512 921 Core 165 | . . 29 136 Absorbed by Shields . | . . . . Core Remaining (%) 97 | 100 100 92 . Volleys Fired 37 | . 5 11 21 Largest 3 | . 2 2 3 Hottest 126 | . 70 70 126 Shots Fired 79 | . 10 22 47 Gun 69 | . 10 22 37 Cannon 10 | . . . 10 Launcher . | . . . . Special . | . . . . Kinetic 30 | . 5 11 14 Thermal 32 | . 5 11 16 Explosive . | . . . . Electromagnetic 17 | . . . 17 Robot Hit Streak 9 | . 4 9 4 Robot Miss Streak 4 | . 2 2 4 Penetration Max . | . . . . Secondary Targets . | . . . . Shots Hit Robots 44 | . 7 14 23 Core Hits 21 | . 2 7 12 Critical Kills . | . . . . Critical Parts Destroyed . | . . . . Critical Strikes 2 | . 1 . 1 Burn 2 | . 1 . 1 Melee Attacks . | . . . . Impact . | . . . . Slashing . | . . . . Piercing . | . . . . Sneak Attacks . | . . . . Combat Hostiles . | . . . . Follow-up Attacks . | . . . . Damage Inflicted 1051 | . 96 235 720 Guns 483 | . 96 201 186 Cannons 184 | . . . 184 Explosions 332 | . . . 332 Melee . | . . . . Ramming 52 | . . 34 18 Kinetic 196 | . 44 101 51 Thermal 583 | . 52 100 431 Explosive . | . . . . Electromagnetic 220 | . . . 220 Impact . | . . . . Slashing . | . . . . Piercing . | . . . . Highest Corruption . | . . . . Average Corruption . | . . . . Corruption Purged . | . . . . Corruption Blocked . | . . . . Overload Shots . | . . . . Overflow Damage 168 | . . . 168 Projectiles . | . . . . Explosions 168 | . . . 168 Melee . | . . . . Knockbacks 2 | . . 1 1 Impact 2 | . . 1 1 Kinetic . | . . . . Secondary . | . . . . Self-Inflicted Damage 62 | . . . 62 Shots 1 | . . . 1 Rammed . | . . . . Targets Rammed 17 | . . 9 8 Kicked 17 | . . 9 8 Crushed . | . . . . Highest Temperature 206 | . 102 75 206 Average Temperature 62 | . 52 32 77 Received Heat Transfer 630 | . 12 240 378 Siege Activations . | . . . . Martial Activations . | . . . . Shielding Activations . | . . . . Robots Disrupted . | . . . . Combat Hostiles . | . . . . Robots Corrupted . | . . . . Combat Hostiles . | . . . . Parts Fried . | . . . . Impact Corruptions . | . . . . Robots Melted . | . . . . Combat Hostiles . | . . . . Parts Melted . | . . . . Heat Transferred 1138 | . 222 296 620 Parts Sabotaged . | . . . . Parts Stolen . | . . . . Parts Stripped . | . . . . Power Chain Reactions 1 | . . . 1 Alert | -11 -10 -9 -8 ------- Run | Yrd Mat Mat Mat Maximum Alert Level . | . . . . Low Security (%) 100 | 100 100 100 100 Level 1 . | . . . . Level 2 . | . . . . Level 3 . | . . . . Level 4 . | . . . . Level 5 . | . . . . High Security . | . . . . Max Security . | . . . . Peak Influence 105 | . 30 48 105 Initial 8 | . . 8 . Average 25 | . 4 13 42 Influence Increases 373 | . 30 91 252 Destroy 0b10 Robot/C 180 | . 20 40 120 Destroy 0b10 Robot/NC 15 | . . 5 10 Destroy Leader 44 | . 10 2 32 Successful Hack 13 | . . 13 . Disable Machine 45 | . . . 45 Destroy Structure 31 | . . 1 30 Lose Combat Pursuer 45 | . . 30 15 Influence Decreases 358 | . 10 111 237 Entered New Map 12 | . . 12 . Time Decay 241 | . 10 71 160 Lost Part 105 | . . 28 77 Squads Dispatched 7 | . 1 4 2 Investigation 2 | . . 2 . Extermination . | . . . . Reinforcement 4 | . 1 2 1 Assault . | . . . . Garrison 1 | . . . 1 Intercept . | . . . . Searches Triggered . | . . . . Construction Impeded . | . . . . Haulers Reinforced . | . . . . Active Scanning Responses . | . . . . Cargo Convoy Interrupts . | . . . . Stealth | -11 -10 -9 -8 --------- Run | Yrd Mat Mat Mat Distress Signals 4 | . . 3 1 Communications Jammed . | . . . . Distress Signals . | . . . . Times Spotted 31 | . 3 16 12 Peak Tracking Total 10 | . 1 10 4 Tactical Retreats 2 | . . 1 1 Traps | -11 -10 -9 -8 ------- Run | Yrd Mat Mat Mat Traps Triggered 1 | . . 1 . Indirectly . | . . . . Trap Hack Attempts . | . . . . Triggered . | . . . . Disarmed . | . . . . Reprogrammed . | . . . . Reused . | . . . . Traps Extracted . | . . . . Installed . | . . . . Triggered . | . . . . Machines | -11 -10 -9 -8 ---------- Run | Yrd Mat Mat Mat Machines Disabled 3 | . . . 3 Max in Single Turn 2 | . . . 2 Machines Repaired . | . . . . Machines Dismantled . | . . . . Machines Sabotaged . | . . . . Overloaded Fab Kills . | . . . . Hacking | -11 -10 -9 -8 --------- Run | Yrd Mat Mat Mat Machines Accessed 3 | . . 2 1 Terminals 3 | . . 2 1 Fabricators . | . . . . Repair Stations . | . . . . Recycling Units . | . . . . Scanalyzers . | . . . . Garrison Access . | . . . . Total Hacks 13 | . . 10 3 Successful 6 | . . 6 . Failed 7 | . . 4 3 Catastrophic . | . . . . Database Lockouts . | . . . . Manual 7 | . . 7 . Terminals 13 | . . 10 3 Fabricators . | . . . . Repair Stations . | . . . . Recycling Units . | . . . . Scanalyzers . | . . . . Garrison Access . | . . . . Terminal Hacks 6 | . . 6 . Record 3 | . . 3 . Maintenance Status 1 | . . 1 . Patrol Status 1 | . . 1 . Zone Layout 1 | . . 1 . Fabricator Hacks . | . . . . Repair Station Hacks . | . . . . Recycling Unit Hacks . | . . . . Scanalyzer . | . . . . Garrison Access Hacks . | . . . . Unauthorized Hacks . | . . . . Terminals . | . . . . Fabricators . | . . . . Repair Stations . | . . . . Recycling Units . | . . . . Scanalyzers . | . . . . Garrison Access . | . . . . Data Cores Recovered . | . . . . Used . | . . . . Hacking Detections 3 | . . 2 1 Full Trace Events 2 | . . 2 . Feedback Events . | . . . . Feedback Blocked . | . . . . Robot Schematics Acquired . | . . . . Robots Built . | . . . . Authchips . | . . . . Time . | . . . . Total Robot Build Rating . | . . . . Part Schematics Acquired . | . . . . Parts Built . | . . . . Authchips . | . . . . Time . | . . . . Total Part Build Rating . | . . . . Parts Repaired . | . . . . Time . | . . . . Parts Recycled . | . . . . Recycled Matter . | . . . . Retrieved Matter . | . . . . Retrieved Components . | . . . . Parts Scanalyzed . | . . . . Part Schematics Acquired . | . . . . Parts Damaged . | . . . . Bothacking | -11 -10 -9 -8 ------------ Run | Yrd Mat Mat Mat Used RIF Installer . | . . . . Robots Hacked . | . . . . Non-combat . | . . . . Combat . | . . . . Robot Hacks Applied . | . . . . Relay Couplers Released . | . . . . Fabnet Peak Effective % . | . . . . Robots Rewired . | . . . . Allies Hacked . | . . . . Hacks Repelled . | . . . . Allies | -11 -10 -9 -8 -------- Run | Yrd Mat Mat Mat Total Allies . | . . . . Largest Group . | . . . . Highest-Rated Group . | . . . . Highest-Rated Ally . | . . . . Total Orders . | . . . . Ally Attacks . | . . . . Total Damage . | . . . . Kills . | . . . . Allies Corrupted . | . . . . Allies Melted . | . . . . Intel | -11 -10 -9 -8 ------- Run | Yrd Mat Mat Mat Active Infowar (turns) 275 | . . . 275 Sensors 275 | . . . 275 Robot Analysis Total . | . . . . Derelict Logs Recovered . | . . . . Drone Launches . | . . . . Drone Recoveries . | . . . . Exploration | -11 -10 -9 -8 ------------- Run | Yrd Mat Mat Mat Turns Passed 1028 | 69 197 232 530 Spaces Moved 587 | 48 145 155 239 Core 4 | 4 . . . Treads . | . . . . Legs 582 | 44 145 155 238 Wheels 1 | . . . 1 Hover . | . . . . Flight . | . . . . Fastest Speed 50 | 50 120 120 105 Average Speed 144 | 114 120 120 180 Slowest Speed 190 | 120 120 120 190 Overloaded Moves . | . . . . Propulsion Burnouts . | . . . . Robots Hopped . | . . . . Potential Cave-ins . | . . . . Cave-ins Triggered . | . . . . Exploration Rate (%) 19 | 3 32 21 23 Regions Visited 3 Branch Regions . Pre-discovered Areas . | . . . . Known Exits Taken . | . . . . Unknown Exits Taken 3 | 1 1 1 . Scrap Searched . | . . . . Spaces Dug . | . . . . Terrain Destroyed 28 | . . . 28 Melee . | . . . . Projectile . | . . . . AOE 28 | . . . 28 Terrain Rammed . | . . . . Walls Destroyed . | . . . . Machines Disabled . | . . . . Actions | -11 -10 -9 -8 --------- Run | Yrd Mat Mat Mat Total 684 | 59 158 177 290 Wait 5 | . . . 5 Move 585 | 47 144 155 239 Hop . | . . . . Pick Up 15 | 5 6 1 3 Fast Attach 9 | 5 1 . 3 Attach 8 | 1 . 2 5 Detach 3 | . . . 3 Swap 2 | 1 . . 1 Drop 4 | . 2 . 2 Fire 37 | . 5 11 21 Melee . | . . . . Ram . | . . . . Kick 16 | . . 8 8 Crush . | . . . . Escape Stasis . | . . . . Rewire . | . . . . Trap . | . . . . Miscellaneous . | . . . . Route ------- -11/Scrapyard -10/Materials -9/Materials -8/Materials History --------- Turn | Location | Event 37 | -11/Scrapyard | Discovered new exit (range 14) 70 | -11/Scrapyard | Entered Materials 173 | -10/Materials | Discovered new exit (range 8) 267 | -10/Materials | Entered another Materials area 267 | -9/Materials | Evolved 2 slots: Propulsion x2 308 | -9/Materials | Build established: Mutant 489 | -9/Materials | Discovered new exit (range 7) 499 | -9/Materials | Entered another Materials area 499 | -8/Materials | Evolved 2 slots: Utility x1, Weapon x1 529 | -8/Materials | Lost 4 parts (1p2n1u) 974 | -8/Materials | Garrison activated, responded to threat 1029 | -8/Materials | Self-destructed Last Messages --------------- 00917_ Kicked K-01 Serf. 00927_ R-06 Scavenger collects Imp. Heat Sink. 00935_ K-01 Serf cleans the Processing Tank. 00950_ K-01 Serf cleans the Terminal. 00959_ Processing Tank disabled. 00974_ G-50 Soldier suffers critical hit (Burn). 00974_ G-50 Soldier calls for garrison reinforcements. 00974_ ALERT: Activating Garrison Access M001. [Achievement: Troublemaker] 00976_ Imp. Sensor Array destroyed. 00987_ Hvy. Armor Plating destroyed. 00988_ Kicked G-47 Trooper. 00991_ Kicked G-47 Trooper out of the way. 00994_ K-01 Serf collects debris. 00996_ Lgt. EM Pulse Cannon destroyed. 00998_ K-01 Serf collects debris. 01008_ Med. Laser destroyed. 01008_ Critical hit (Burn: +37). 01011_ Lgt. Ion Engine destroyed. 01014_ Aluminum Leg destroyed. Map ----- +----------------------------------------------------+ | ???????????????# ??????????????? | | ??????????????## """ """ ???????????????? | | ??????????????#T "" """ #????????????????? | | ???????????????# """ "" ] #????????????????? | | ???????????????# """ """ #????????????????? | | ???????????????# % "" """ ##???????????????? | | ???????????????# ##??????????????? | | ???????????????# +??????????????? | | ???????????????# [ #???????????????? | | ???????????????# #####+##### #???????????????? | | ?????########### ## """ # #???????????????? | | ?????# ] # ## "T" # ####????????????? | | ?????# # ## %# !##???????????? | | ?????# # ## [%+% !#???????????? | | ?????# [%+% ###########% !#???????????? | | ?????# !# **#?????# !#???????????? | | ?????# %# **#?????# !#???????????? | | ?????# # **#?????# !##???????????? | | ?????# + **#?????# ####????????????? | | ?????############# //#?????# #???????????????? | | ?????????????????# //#?????# #???????????????? | | ???#######???????# #####?????# #???????????????? | | ####"""""###?????# #?????????# #???????????????? | | # "#?????# #????####### ##???????????????? | | # ! "#????## ##???# # #????????????????? | | # #######= #???#@""" # #????????????????? | | # ! [ +!% [#???# """g# #????????????????? | | + ! * #"##### #???# """ + #????????????????? | | # " #???#####???# """ # #????????????????? | | # ! "##???????????# """ # #????????????????? | | # "#????????????# gg # #????????????????? | | ##"""""""""#????????????####/## #????????????????? | | ### ####???????????????# #????????????????? | | #??????????????????# #????????????????? | | #??????????????????# #????????????????? | | / #??????????????????# #???????H????????? | | ## % #??????????????????# #????????????????? | | +### [=##??????????????????# #????????????????? | | # [##??????????????????# #????????????????? | | + !=##??????????????????######????????????????? | | # ##????????????????????????????????????????? | | "" # ##????????????????????????????????????????? | | "" # #?????????????????????????????????????????? | | "" # #?????????????????????????????????????????? | | #### #?????????????????????????????????????????? | | ???# #?????????????????????????????????????????? | | ???# #?????????????????????????????????????????? | | ???# #?????????????????????????????????????????? | | ???# #?????????????????????????????????????????? | | ???# #?????????????????????????????????????????? | +----------------------------------------------------+ Best States ------------- Heat Dissipation 31 Energy Generation 10 Energy Capacity 125 Matter Stores 300 Matter Capacity 300 Sight Range 16 Robot Scan Range 15 Terrain Scan Density 10 Armor Coverage 600 Evasion (%) 55 Targeting Accuracy 5 Item Schematics ----------------- None Robot Schematics ------------------ None Fabricated ------------ Nothing Repaired ---------- Nothing Alien Tech Used ----------------- None Achievements -------------- Troublemaker Challenges ------------ None Game ------ Seed DispersionBiocellTether Manual? 0 Play Time 00:13:14 Cumulative 3.5 hours Start 2025.10.14 @ 23:50:06 End 2025.10.15 @ 00:01:23 Sessions 1 Manual Loads 0 Difficulty Rogue Special Mode None Game No. 10 Rogue 10 Adventurer 0 Explorer 0 Win Type - Total 0 Types 0/0/0/0/0/0/0/0/0/0 Lore% 0 Gallery% 6 Achievement% 6 Wizard Run 0 Options --------- Layout 1 ASCII 0 Keyboard 1 Movement Numpad Keybinds 0 Fullscreen 0 Font 28/SmallcapsGlow Map View 77x35 Zoom Use 0% Tactical HUD 1 Map Filters NONE Filters NONE Steam 1 RUN: e8f5483d-b24b-4a04-864f-209e83e38921